[Event "Late-Titled-Tuesday-Blitz-October-17-2023"]
[Site "Chess.com"]
[Date "2023.10.17"]
[Round "5"]
[White "AlexNovitz"]
[Black "Noki102"]
[Result "0-1"]
[WhiteElo "2218"]
[BlackElo "2446"]
[TimeControl "180+1"]
[EndTime "14:52:04 PDT"]
[Termination "Noki102 won by resignation"]

1. e4 {[%clk 0:03:00.9]} 1... e5 {[%clk 0:02:59.5]} 2. Nf3 {[%clk 0:03:00.6]}
2... Nc6 {[%clk 0:02:59.1]} 3. Bb5 {[%clk 0:03:01.1]} 3... a6 {[%clk 0:02:58.9]}
4. Ba4 {[%clk 0:03:01.1]} 4... g6 {[%clk 0:02:59.1]} 5. O-O {[%clk 0:03:00.8]}
5... Bg7 {[%clk 0:02:59.3]} 6. d3 {[%clk 0:02:55.1]} 6... d6 {[%clk 0:02:57.9]}
7. Bg5 {[%clk 0:02:53.4]} 7... Ne7 {[%clk 0:02:57.1]} 8. h3 {[%clk 0:02:52.4]}
8... O-O {[%clk 0:02:56.4]} 9. Qd2 {[%clk 0:02:51.7]} 9... b5 {[%clk 0:02:50.6]}
10. Bb3 {[%clk 0:02:51.2]} 10... a5 {[%clk 0:02:41.4]} 11. a4 {[%clk 0:02:50.3]}
11... b4 {[%clk 0:02:41.7]} 12. Bh6 {[%clk 0:02:36.1]} 12... d5 {[%clk
0:02:33.1]} 13. exd5 {[%clk 0:02:30.9]} 13... Nxd5 {[%clk 0:02:32.9]} 14. Bxg7
{[%clk 0:02:29.1]} 14... Kxg7 {[%clk 0:02:32.9]} 15. Re1 {[%clk 0:02:29.3]}
15... Re8 {[%clk 0:02:22.8]} 16. Qe3 {[%clk 0:02:18.4]} 16... Nxe3 {[%clk
0:02:22.1]} 17. Rxe3 {[%clk 0:02:09.8]} 17... Nd4 {[%clk 0:02:19.8]} 18. Nxd4
{[%clk 0:02:07.7]} 18... exd4 {[%clk 0:02:19.7]} 19. Rxe8 {[%clk 0:02:08.3]}
19... Qxe8 {[%clk 0:02:20.6]} 20. Nd2 {[%clk 0:02:08.1]} 20... Be6 {[%clk
0:02:18.3]} 21. Re1 {[%clk 0:02:05.8]} 21... Ra6 {[%clk 0:02:18.1]} 22. Bc4
{[%clk 0:02:04.4]} 22... Rd6 {[%clk 0:02:17.5]} 23. b3 {[%clk 0:02:01.4]} 23...
Qd7 {[%clk 0:02:15.9]} 24. Re5 {[%clk 0:01:59.1]} 24... Bxc4 {[%clk 0:02:14.2]}
25. Nxc4 {[%clk 0:01:58.7]} 25... Rd5 {[%clk 0:02:13.7]} 26. Re4 {[%clk
0:01:57.2]} 26... c5 {[%clk 0:02:11.2]} 27. Nb6 {[%clk 0:01:55.7]} 27... Qc6
{[%clk 0:02:11.3]} 28. Nxd5 {[%clk 0:01:55.4]} 28... Qxd5 {[%clk 0:02:12.2]} 29.
f3 {[%clk 0:01:53.5]} 29... f5 {[%clk 0:02:11.3]} 30. Re2 {[%clk 0:01:53]} 30...
Kf6 {[%clk 0:02:10.7]} 31. Kf2 {[%clk 0:01:53.4]} 31... Qd6 {[%clk 0:02:10]} 32.
g3 {[%clk 0:01:52.7]} 32... f4 {[%clk 0:02:08.1]} 33. g4 {[%clk 0:01:52.4]}
33... Kf7 {[%clk 0:02:07.9]} 34. Kg2 {[%clk 0:01:46.4]} 34... Qf6 {[%clk
0:02:07.9]} 35. Kh2 {[%clk 0:01:45.7]} 35... Qh4 {[%clk 0:02:07.5]} 36. Rg2
{[%clk 0:01:45.3]} 36... Qe1 {[%clk 0:02:07.4]} 37. Rg1 {[%clk 0:01:40.9]} 37...
Qf2+ {[%clk 0:02:07]} 38. Rg2 {[%clk 0:01:41.2]} 38... Qxf3 {[%clk 0:02:06.9]}
39. h4 {[%clk 0:01:41.4]} 39... Qe3 {[%clk 0:02:04.3]} 40. h5 {[%clk 0:01:39.6]}
40... f3 {[%clk 0:02:04.3]} 41. Rg3 {[%clk 0:01:38.5]} 41... Qe2+ {[%clk
0:02:01.5]} 42. Kh3 {[%clk 0:01:37.7]} 42... f2 {[%clk 0:02:01.6]} 43. hxg6+
{[%clk 0:01:34.6]} 43... Kxg6 {[%clk 0:02:01.4]} 44. Kh4 {[%clk 0:01:27.6]}
44... f1=Q {[%clk 0:01:59.9]} 0-1

[Event "Late-Titled-Tuesday-Blitz-October-17-2023"]
[Site "Chess.com"]
[Date "2023.10.17"]
[Round "5"]
[White "tylityli"]
[Black "OLDTERMINATOR"]
[Result "1-0"]
[WhiteElo "2346"]
[BlackElo "1648"]
[TimeControl "180+1"]
[EndTime "14:52:44 PDT"]
[Termination "tylityli won by resignation"]

1. d4 {[%clk 0:02:52.4]} 1... Nf6 {[%clk 0:02:59]} 2. c4 {[%clk 0:02:52.3]} 2...
e5 {[%clk 0:02:58.9]} 3. dxe5 {[%clk 0:02:51.7]} 3... Ng4 {[%clk 0:02:57.8]} 4.
Bf4 {[%clk 0:02:51.7]} 4... g5 {[%clk 0:02:57]} 5. Bg3 {[%clk 0:02:51.1]} 5...
Bg7 {[%clk 0:02:56.6]} 6. Nf3 {[%clk 0:02:51.7]} 6... Nc6 {[%clk 0:02:55]} 7. h4
{[%clk 0:02:50.2]} 7... h6 {[%clk 0:02:47.9]} 8. hxg5 {[%clk 0:02:49.2]} 8...
hxg5 {[%clk 0:02:47.4]} 9. Rxh8+ {[%clk 0:02:49.3]} 9... Bxh8 {[%clk 0:02:47.3]}
10. Qd5 {[%clk 0:02:46]} 10... d6 {[%clk 0:02:04.5]} 11. Nc3 {[%clk 0:02:38.7]}
11... Ngxe5 {[%clk 0:01:47.8]} 12. Nxe5 {[%clk 0:02:33.5]} 12... Nxe5 {[%clk
0:01:46.9]} 13. O-O-O {[%clk 0:02:31.2]} 13... Be6 {[%clk 0:01:20.2]} 14. Qxb7
{[%clk 0:02:22.9]} 14... Rb8 {[%clk 0:01:17.5]} 15. Qa6 {[%clk 0:02:17.1]} 15...
Bxc4 {[%clk 0:00:49.4]} 16. Qa4+ {[%clk 0:02:13.8]} 16... Kf8 {[%clk 0:00:42.9]}
17. Bxe5 {[%clk 0:02:11.5]} 17... Bxe5 {[%clk 0:00:16.3]} 18. Qxc4 {[%clk
0:02:10.7]} 18... Qf6 {[%clk 0:00:12.7]} 19. Qxc7 {[%clk 0:01:46]} 19... Rxb2
{[%clk 0:00:09.4]} 20. Kxb2 {[%clk 0:01:44.7]} 20... Bxc3+ {[%clk 0:00:08.5]}
21. Qxc3 {[%clk 0:01:44.3]} 21... Qxc3+ {[%clk 0:00:07.2]} 22. Kxc3 {[%clk
0:01:44.3]} 1-0

[Event "Late-Titled-Tuesday-Blitz-October-17-2023"]
[Site "Chess.com"]
[Date "2023.10.17"]
[Round "5"]
[White "DawidCzerw"]
[Black "marik_spb"]
[Result "0-1"]
[WhiteElo "2545"]
[BlackElo "2427"]
[TimeControl "180+1"]
[EndTime "14:52:47 PDT"]
[Termination "marik_spb won by checkmate"]

1. e4 {[%clk 0:03:00.9]} 1... c6 {[%clk 0:02:59.3]} 2. Nc3 {[%clk 0:03:00.9]}
2... d5 {[%clk 0:02:58.8]} 3. Qf3 {[%clk 0:03:01.3]} 3... dxe4 {[%clk
0:02:57.8]} 4. Nxe4 {[%clk 0:03:02.2]} 4... Nf6 {[%clk 0:02:58.6]} 5. Bc4 {[%clk
0:03:02]} 5... g6 {[%clk 0:02:39.6]} 6. Ne2 {[%clk 0:02:56.4]} 6... Bg7 {[%clk
0:02:39.7]} 7. d4 {[%clk 0:02:55.8]} 7... O-O {[%clk 0:02:39.2]} 8. Bg5 {[%clk
0:02:55.8]} 8... Nxe4 {[%clk 0:02:24.2]} 9. Qxe4 {[%clk 0:02:54.6]} 9... Bf5
{[%clk 0:02:24]} 10. Qxe7 {[%clk 0:02:42.9]} 10... Qxe7 {[%clk 0:02:23.8]} 11.
Bxe7 {[%clk 0:02:43.8]} 11... Re8 {[%clk 0:02:23.7]} 12. Bg5 {[%clk 0:02:41.1]}
12... Bxc2 {[%clk 0:02:11.4]} 13. Kd2 {[%clk 0:02:39]} 13... Bf5 {[%clk
0:01:59.2]} 14. Rhe1 {[%clk 0:02:36.2]} 14... Nd7 {[%clk 0:01:57.1]} 15. Be3
{[%clk 0:02:27]} 15... Rad8 {[%clk 0:01:48.4]} 16. Ng3 {[%clk 0:02:16.2]} 16...
Nb6 {[%clk 0:01:40.5]} 17. Bb3 {[%clk 0:02:07.8]} 17... Bxd4 {[%clk 0:01:32.3]}
18. Bxd4 {[%clk 0:02:08]} 18... Rxd4+ {[%clk 0:01:27.2]} 19. Kc3 {[%clk
0:02:07.4]} 19... Rd3+ {[%clk 0:00:49.3]} 20. Kb4 {[%clk 0:01:55.8]} 20... Red8
{[%clk 0:00:39.7]} 21. Nxf5 {[%clk 0:01:36.1]} 21... gxf5 {[%clk 0:00:40.6]} 22.
a4 {[%clk 0:01:15.2]} 22... R8d4+ {[%clk 0:00:40]} 23. Ka3 {[%clk 0:01:15.4]}
23... Rxa4# {[%clk 0:00:38.1]} 0-1

[Event "Late-Titled-Tuesday-Blitz-October-17-2023"]
[Site "Chess.com"]
[Date "2023.10.17"]
[Round "5"]
[White "stasOR4ik"]
[Black "Tomytoteph"]
[Result "0-1"]
[WhiteElo "2442"]
[BlackElo "2578"]
[TimeControl "180+1"]
[EndTime "14:52:54 PDT"]
[Termination "Tomytoteph won by resignation"]

1. e4 {[%clk 0:03:00.9]} 1... c5 {[%clk 0:02:59.1]} 2. c3 {[%clk 0:03:01]} 2...
g6 {[%clk 0:02:59]} 3. d4 {[%clk 0:03:01.1]} 3... cxd4 {[%clk 0:02:59.9]} 4.
cxd4 {[%clk 0:03:01.4]} 4... d5 {[%clk 0:03:00]} 5. e5 {[%clk 0:02:57.8]} 5...
Bg7 {[%clk 0:03:00.2]} 6. f4 {[%clk 0:02:57.6]} 6... Nc6 {[%clk 0:03:00.6]} 7.
Nf3 {[%clk 0:02:57.5]} 7... Bg4 {[%clk 0:03:00.6]} 8. Be2 {[%clk 0:02:54.2]}
8... e6 {[%clk 0:03:00.6]} 9. Nc3 {[%clk 0:02:52.3]} 9... Nge7 {[%clk
0:03:00.5]} 10. O-O {[%clk 0:02:51.4]} 10... O-O {[%clk 0:02:59.6]} 11. Be3
{[%clk 0:02:49.8]} 11... Rc8 {[%clk 0:02:56.1]} 12. Rc1 {[%clk 0:02:45]} 12...
Nf5 {[%clk 0:02:54.8]} 13. Bf2 {[%clk 0:02:44.3]} 13... Qb6 {[%clk 0:02:55.4]}
14. Na4 {[%clk 0:02:41.9]} 14... Qa5 {[%clk 0:02:52.3]} 15. a3 {[%clk
0:02:34.2]} 15... Bh6 {[%clk 0:02:48.2]} 16. b4 {[%clk 0:02:26.9]} 16... Qd8
{[%clk 0:02:45.2]} 17. g3 {[%clk 0:02:21.1]} 17... Bxf3 {[%clk 0:02:34.1]} 18.
Bxf3 {[%clk 0:02:21]} 18... Ncxd4 {[%clk 0:02:27.6]} 19. Rxc8 {[%clk 0:02:08.9]}
19... Nxf3+ {[%clk 0:02:25.9]} 20. Qxf3 {[%clk 0:02:09.8]} 20... Qxc8 {[%clk
0:02:26.5]} 21. Bc5 {[%clk 0:01:58.6]} 21... Re8 {[%clk 0:02:22.1]} 22. g4
{[%clk 0:01:58.8]} 22... Ne7 {[%clk 0:02:18.9]} 23. f5 {[%clk 0:01:52.6]} 23...
exf5 {[%clk 0:02:15.6]} 24. Bxe7 {[%clk 0:01:51.2]} 24... Rxe7 {[%clk
0:02:14.3]} 25. gxf5 {[%clk 0:01:50.9]} 25... Qc4 {[%clk 0:01:49.3]} 26. fxg6
{[%clk 0:01:37.6]} 26... hxg6 {[%clk 0:01:47]} 27. Nc5 {[%clk 0:01:22.1]} 27...
Qd4+ {[%clk 0:01:46.5]} 28. Kh1 {[%clk 0:01:13.8]} 28... Qxe5 {[%clk 0:01:46.2]}
29. Qh3 {[%clk 0:00:59.6]} 29... Bf8 {[%clk 0:01:41.9]} 30. Nd7 {[%clk
0:00:53.6]} 30... Qe4+ {[%clk 0:01:42.3]} 31. Kg1 {[%clk 0:00:53.2]} 31... Bg7
{[%clk 0:01:42.5]} 32. Nf6+ {[%clk 0:00:37.2]} 32... Bxf6 {[%clk 0:01:42.3]} 33.
Rxf6 {[%clk 0:00:38.1]} 33... Qd4+ {[%clk 0:01:36.6]} 34. Kf1 {[%clk 0:00:37.4]}
34... Qxf6+ {[%clk 0:01:36.1]} 0-1

[Event "Late-Titled-Tuesday-Blitz-October-17-2023"]
[Site "Chess.com"]
[Date "2023.10.17"]
[Round "5"]
[White "GMKrikor"]
[Black "Nekoo04"]
[Result "1-0"]
[WhiteElo "2825"]
[BlackElo "2272"]
[TimeControl "180+1"]
[EndTime "14:53:03 PDT"]
[Termination "GMKrikor won on time"]

1. Nf3 {[%clk 0:03:00.9]} 1... d5 {[%clk 0:02:35.9]} 2. c4 {[%clk 0:03:00.6]}
2... e6 {[%clk 0:02:32.1]} 3. d4 {[%clk 0:03:00.4]} 3... Nf6 {[%clk 0:02:32.6]}
4. cxd5 {[%clk 0:03:00.6]} 4... exd5 {[%clk 0:02:32.7]} 5. Nc3 {[%clk
0:03:01.4]} 5... c6 {[%clk 0:02:31.3]} 6. Bf4 {[%clk 0:03:02]} 6... Bd6 {[%clk
0:02:24.5]} 7. Bxd6 {[%clk 0:02:56.5]} 7... Qxd6 {[%clk 0:02:25.4]} 8. e3 {[%clk
0:02:57.1]} 8... Bf5 {[%clk 0:02:20.1]} 9. Nh4 {[%clk 0:02:55.7]} 9... Be4
{[%clk 0:01:59]} 10. f3 {[%clk 0:02:54.1]} 10... Bg6 {[%clk 0:01:56]} 11. e4
{[%clk 0:02:54.8]} 11... dxe4 {[%clk 0:01:36.6]} 12. Nxg6 {[%clk 0:02:54.5]}
12... hxg6 {[%clk 0:01:29.1]} 13. fxe4 {[%clk 0:02:55]} 13... Nbd7 {[%clk
0:00:49.4]} 14. Qd2 {[%clk 0:02:20.1]} 14... O-O-O {[%clk 0:00:22.1]} 15. O-O-O
{[%clk 0:02:17]} 15... Ng4 {[%clk 0:00:17.5]} 16. h3 {[%clk 0:02:13.5]} 16...
Qg3 {[%clk 0:00:13]} 17. Re1 {[%clk 0:02:03]} 17... Nf2 {[%clk 0:00:10.2]} 18.
Re3 {[%clk 0:02:02.1]} 18... Qg5 {[%clk 0:00:05.8]} 19. Rg1 {[%clk 0:02:01]}
19... Rxh3 {[%clk 0:00:02.4]} 20. Rf3 {[%clk 0:01:29.9]} 20... Qxd2+ {[%clk
0:00:01.8]} 21. Kxd2 {[%clk 0:01:30.8]} 21... Rxf3 {[%clk 0:00:01.7]} 22. gxf3
{[%clk 0:01:31.7]} 1-0

[Event "Late-Titled-Tuesday-Blitz-October-17-2023"]
[Site "Chess.com"]
[Date "2023.10.17"]
[Round "5"]
[White "giomar27"]
[Black "stregachess"]
[Result "1-0"]
[WhiteElo "2352"]
[BlackElo "2075"]
[TimeControl "180+1"]
[EndTime "14:53:15 PDT"]
[Termination "giomar27 won on time"]

1. e4 {[%clk 0:03:00.9]} 1... c5 {[%clk 0:02:59.7]} 2. Nc3 {[%clk 0:02:59.1]}
2... d6 {[%clk 0:02:58.5]} 3. d4 {[%clk 0:02:58.9]} 3... cxd4 {[%clk 0:02:58.3]}
4. Qxd4 {[%clk 0:02:59.8]} 4... Nc6 {[%clk 0:02:56.8]} 5. Qd2 {[%clk 0:03:00]}
5... Nf6 {[%clk 0:02:56]} 6. b3 {[%clk 0:03:00.2]} 6... g6 {[%clk 0:02:55.8]} 7.
Bb2 {[%clk 0:03:00.3]} 7... Bg7 {[%clk 0:02:56.1]} 8. O-O-O {[%clk 0:03:00.1]}
8... O-O {[%clk 0:02:53.7]} 9. f4 {[%clk 0:03:00.7]} 9... Bg4 {[%clk 0:02:48.6]}
10. Be2 {[%clk 0:02:59.8]} 10... Bxe2 {[%clk 0:02:46.8]} 11. Ngxe2 {[%clk
0:03:00.7]} 11... Rc8 {[%clk 0:02:27]} 12. Kb1 {[%clk 0:03:00.5]} 12... a6
{[%clk 0:02:23.3]} 13. h3 {[%clk 0:02:59]} 13... b5 {[%clk 0:02:20.8]} 14. Ng3
{[%clk 0:02:16.9]} 14... Nb4 {[%clk 0:02:02.9]} 15. a3 {[%clk 0:02:12.2]} 15...
Nc6 {[%clk 0:01:56.7]} 16. Nd5 {[%clk 0:02:01.4]} 16... Nxd5 {[%clk 0:01:51.1]}
17. Bxg7 {[%clk 0:02:01.7]} 17... Kxg7 {[%clk 0:01:49.4]} 18. exd5 {[%clk
0:02:02]} 18... Nb8 {[%clk 0:01:20.6]} 19. f5 {[%clk 0:01:59.8]} 19... Nd7
{[%clk 0:01:19.7]} 20. h4 {[%clk 0:01:53.7]} 20... Qc7 {[%clk 0:01:15.4]} 21. h5
{[%clk 0:01:50.7]} 21... Qc3 {[%clk 0:01:13.2]} 22. hxg6 {[%clk 0:01:49]} 22...
Qxd2 {[%clk 0:00:34.4]} 23. Rxh7+ {[%clk 0:01:47.1]} 23... Kf6 {[%clk
0:00:34.6]} 24. Rxd2 {[%clk 0:01:41.6]} 24... fxg6 {[%clk 0:00:34.1]} 25. fxg6
{[%clk 0:01:41.8]} 25... Kxg6 {[%clk 0:00:34]} 26. Rxe7 {[%clk 0:01:40.2]} 26...
Rf6 {[%clk 0:00:22.2]} 27. Ne4 {[%clk 0:01:37.2]} 27... Rf1+ {[%clk 0:00:19.3]}
28. Kb2 {[%clk 0:01:37.1]} 28... b4 {[%clk 0:00:16.6]} 29. axb4 {[%clk
0:01:34.6]} 29... Ne5 {[%clk 0:00:11.1]} 30. Nxd6 {[%clk 0:01:33.8]} 1-0

[Event "Late-Titled-Tuesday-Blitz-October-17-2023"]
[Site "Chess.com"]
[Date "2023.10.17"]
[Round "5"]
[White "morte-negra"]
[Black "gunslinger222"]
[Result "0-1"]
[WhiteElo "1969"]
[BlackElo "2351"]
[TimeControl "180+1"]
[EndTime "14:53:28 PDT"]
[Termination "gunslinger222 won by resignation"]

1. e4 {[%clk 0:03:00]} 1... d5 {[%clk 0:02:31.2]} 2. exd5 {[%clk 0:02:58.5]}
2... Qxd5 {[%clk 0:02:32.1]} 3. Nc3 {[%clk 0:02:57.6]} 3... Qa5 {[%clk
0:02:32.5]} 4. d4 {[%clk 0:02:57.2]} 4... Nf6 {[%clk 0:02:32.8]} 5. Bc4 {[%clk
0:02:56.6]} 5... Bf5 {[%clk 0:02:31.8]} 6. Bd2 {[%clk 0:02:55.2]} 6... Qb6
{[%clk 0:02:16.4]} 7. Qe2 {[%clk 0:02:48.9]} 7... e6 {[%clk 0:02:09.7]} 8. O-O-O
{[%clk 0:02:46.9]} 8... Nc6 {[%clk 0:02:07.4]} 9. Nf3 {[%clk 0:02:22.2]} 9...
Nb4 {[%clk 0:02:06.1]} 10. Bb3 {[%clk 0:02:14.5]} 10... Be7 {[%clk 0:01:54.9]}
11. Nh4 {[%clk 0:02:08.7]} 11... Bg4 {[%clk 0:01:45.3]} 12. f3 {[%clk
0:02:07.8]} 12... Bh5 {[%clk 0:01:45.1]} 13. g4 {[%clk 0:02:06.4]} 13... Bg6
{[%clk 0:01:41.8]} 14. a3 {[%clk 0:02:05.4]} 14... Nc6 {[%clk 0:01:26.4]} 15. d5
{[%clk 0:01:56.1]} 15... Nd4 {[%clk 0:01:16.5]} 16. Ba4+ {[%clk 0:01:43.5]}
16... Kf8 {[%clk 0:01:11.1]} 17. Nxg6+ {[%clk 0:01:39.6]} 17... hxg6 {[%clk
0:01:08.5]} 18. Qe3 {[%clk 0:01:10.4]} 18... Rh3 {[%clk 0:00:58.7]} 19. dxe6
{[%clk 0:00:56.4]} 19... Rxf3 {[%clk 0:00:56.7]} 20. Qg1 {[%clk 0:00:28.5]}
20... Rxc3 {[%clk 0:00:52.8]} 21. Bxc3 {[%clk 0:00:27]} 21... Ne2+ {[%clk
0:00:52.2]} 0-1

[Event "Late-Titled-Tuesday-Blitz-October-17-2023"]
[Site "Chess.com"]
[Date "2023.10.17"]
[Round "5"]
[White "WPWPWP-2015"]
[Black "Flaccidmoves"]
[Result "1-0"]
[WhiteElo "2572"]
[BlackElo "2415"]
[TimeControl "180+1"]
[EndTime "14:53:29 PDT"]
[Termination "WPWPWP-2015 won by resignation"]

1. e4 {[%clk 0:03:00.9]} 1... e6 {[%clk 0:02:58.1]} 2. d4 {[%clk 0:02:58.5]}
2... d5 {[%clk 0:02:58.4]} 3. Nc3 {[%clk 0:02:59.2]} 3... Bb4 {[%clk 0:02:57.8]}
4. e5 {[%clk 0:02:58.6]} 4... c5 {[%clk 0:02:56.5]} 5. a3 {[%clk 0:02:58.2]}
5... Bxc3+ {[%clk 0:02:56]} 6. bxc3 {[%clk 0:02:59.1]} 6... Ne7 {[%clk
0:02:56.3]} 7. Qg4 {[%clk 0:02:58.4]} 7... Qc7 {[%clk 0:02:39.5]} 8. Qxg7 {[%clk
0:02:57.6]} 8... Rg8 {[%clk 0:02:39.1]} 9. Qxh7 {[%clk 0:02:58.2]} 9... cxd4
{[%clk 0:02:38.3]} 10. Ne2 {[%clk 0:02:58.8]} 10... dxc3 {[%clk 0:02:28.5]} 11.
f4 {[%clk 0:02:58.4]} 11... Bd7 {[%clk 0:02:18.7]} 12. Ng3 {[%clk 0:02:57.1]}
12... Nbc6 {[%clk 0:02:14.2]} 13. Nh5 {[%clk 0:02:56.4]} 13... O-O-O {[%clk
0:02:10.9]} 14. Nf6 {[%clk 0:02:50.3]} 14... Rh8 {[%clk 0:02:01]} 15. Qxf7
{[%clk 0:02:39]} 15... Nd4 {[%clk 0:01:37]} 16. Bd3 {[%clk 0:02:31.5]} 16...
Nef5 {[%clk 0:01:31.4]} 17. Rb1 {[%clk 0:02:10.1]} 17... Ng3 {[%clk 0:01:11.1]}
18. Rg1 {[%clk 0:02:03.4]} 18... Rxh2 {[%clk 0:01:10.5]} 19. Nxd7 {[%clk
0:01:57.8]} 19... Rxd7 {[%clk 0:01:00.2]} 20. Qg8+ {[%clk 0:01:55.8]} 20... Rd8
{[%clk 0:00:59.4]} 21. Qxg3 {[%clk 0:01:53.9]} 21... Rdh8 {[%clk 0:00:56.1]} 22.
Be3 {[%clk 0:01:49.6]} 22... Nf5 {[%clk 0:00:45]} 23. Bxf5 {[%clk 0:01:46.2]}
23... exf5 {[%clk 0:00:45.9]} 24. Qg6 {[%clk 0:01:31.3]} 24... Rh1 {[%clk
0:00:16.7]} 25. Qe6+ {[%clk 0:01:17.3]} 25... Kb8 {[%clk 0:00:15.8]} 26. Qd6
{[%clk 0:01:16.6]} 26... Qxd6 {[%clk 0:00:09.1]} 27. exd6 {[%clk 0:01:15.8]}
27... R1h6 {[%clk 0:00:08.5]} 28. Bd4 {[%clk 0:01:13.9]} 28... Kc8 {[%clk
0:00:06.2]} 1-0

[Event "Late-Titled-Tuesday-Blitz-October-17-2023"]
[Site "Chess.com"]
[Date "2023.10.17"]
[Round "5"]
[White "kiwibobo"]
[Black "as9killer2"]
[Result "1-0"]
[WhiteElo "2315"]
[BlackElo "2501"]
[TimeControl "180+1"]
[EndTime "14:53:33 PDT"]
[Termination "kiwibobo won by checkmate"]

1. e4 {[%clk 0:03:00.9]} 1... c5 {[%clk 0:03:00.1]} 2. Nf3 {[%clk 0:03:01.4]}
2... Nc6 {[%clk 0:03:00.2]} 3. d4 {[%clk 0:03:02.1]} 3... cxd4 {[%clk
0:03:01.1]} 4. Nxd4 {[%clk 0:03:02.7]} 4... e5 {[%clk 0:03:01.6]} 5. Nb5 {[%clk
0:03:02.6]} 5... d6 {[%clk 0:03:02]} 6. c4 {[%clk 0:03:02.9]} 6... g6 {[%clk
0:03:01.3]} 7. N1c3 {[%clk 0:03:02]} 7... a6 {[%clk 0:03:01.3]} 8. Na3 {[%clk
0:03:02]} 8... Be6 {[%clk 0:03:01.8]} 9. Be2 {[%clk 0:03:02]} 9... Bg7 {[%clk
0:03:01.8]} 10. O-O {[%clk 0:03:02.4]} 10... Nf6 {[%clk 0:03:02]} 11. Nc2 {[%clk
0:03:00.3]} 11... O-O {[%clk 0:02:59.5]} 12. Be3 {[%clk 0:03:00.1]} 12... Rc8
{[%clk 0:02:58.2]} 13. f3 {[%clk 0:02:48.4]} 13... Na5 {[%clk 0:02:55.9]} 14. b3
{[%clk 0:02:39]} 14... b5 {[%clk 0:02:55.5]} 15. Nd5 {[%clk 0:02:38.4]} 15...
bxc4 {[%clk 0:02:51.2]} 16. Bb6 {[%clk 0:02:36.2]} 16... cxb3 {[%clk 0:02:40.9]}
17. Bxd8 {[%clk 0:02:31.6]} 17... bxc2 {[%clk 0:02:40.9]} 18. Qd2 {[%clk
0:02:22.7]} 18... Bxd5 {[%clk 0:02:12.1]} 19. Bxf6 {[%clk 0:01:55.6]} 19... Bxf6
{[%clk 0:01:46.9]} 20. Qxd5 {[%clk 0:01:48.9]} 20... Bg5 {[%clk 0:01:38.9]} 21.
Qxa5 {[%clk 0:01:40]} 21... c1=Q {[%clk 0:01:38.8]} 22. Raxc1 {[%clk 0:01:40.7]}
22... Bxc1 {[%clk 0:01:38.3]} 23. Qxa6 {[%clk 0:01:33.9]} 23... Be3+ {[%clk
0:01:37.8]} 24. Kh1 {[%clk 0:01:33.8]} 24... Rc2 {[%clk 0:01:37.6]} 25. Qd3
{[%clk 0:01:30.5]} 25... Rxa2 {[%clk 0:01:29.8]} 26. Qxe3 {[%clk 0:01:30.4]}
26... Rc8 {[%clk 0:01:29.9]} 27. h3 {[%clk 0:01:17.9]} 27... Rcc2 {[%clk
0:01:29.4]} 28. Re1 {[%clk 0:01:18.2]} 28... h5 {[%clk 0:01:28.6]} 29. Bf1
{[%clk 0:01:11.3]} 29... Rd2 {[%clk 0:01:27.8]} 30. Rc1 {[%clk 0:01:07.6]} 30...
Kg7 {[%clk 0:01:26.9]} 31. Bc4 {[%clk 0:01:01.9]} 31... Rab2 {[%clk 0:01:22.3]}
32. Qg5 {[%clk 0:01:00.4]} 32... Rbc2 {[%clk 0:01:09.4]} 33. Rxc2 {[%clk
0:00:58.5]} 33... Rxc2 {[%clk 0:01:10.3]} 34. Bd5 {[%clk 0:00:57.7]} 34... Rc7
{[%clk 0:01:09.7]} 35. h4 {[%clk 0:00:55.7]} 35... Rd7 {[%clk 0:01:09.3]} 36.
Qe3 {[%clk 0:00:56]} 36... Rc7 {[%clk 0:01:08.8]} 37. Qb6 {[%clk 0:00:55.9]}
37... Rd7 {[%clk 0:01:08.5]} 38. Qc6 {[%clk 0:00:54.8]} 38... Rd8 {[%clk
0:01:08.8]} 39. Qc7 {[%clk 0:00:55.5]} 39... Re8 {[%clk 0:01:06.8]} 40. Qxf7+
{[%clk 0:00:55.6]} 40... Kh6 {[%clk 0:01:06]} 41. Qxe8 {[%clk 0:00:56]} 41... g5
{[%clk 0:01:06.2]} 42. hxg5+ {[%clk 0:00:56.6]} 42... Kxg5 {[%clk 0:01:06.3]}
43. Qf7 {[%clk 0:00:56.7]} 43... Kh4 {[%clk 0:01:05.6]} 44. Qf6+ {[%clk
0:00:54.6]} 44... Kg3 {[%clk 0:01:05.3]} 45. Qg5+ {[%clk 0:00:54.6]} 45... Kf2
{[%clk 0:01:05.1]} 46. Qd2+ {[%clk 0:00:54.8]} 46... Kg3 {[%clk 0:01:05.1]} 47.
Kg1 {[%clk 0:00:55.5]} 47... h4 {[%clk 0:01:04.4]} 48. Qg5# {[%clk 0:00:56]} 1-0

[Event "Late-Titled-Tuesday-Blitz-October-17-2023"]
[Site "Chess.com"]
[Date "2023.10.17"]
[Round "5"]
[White "venturov"]
[Black "johnmez"]
[Result "1-0"]
[WhiteElo "2453"]
[BlackElo "2302"]
[TimeControl "180+1"]
[EndTime "14:53:35 PDT"]
[Termination "venturov won by resignation"]

1. e4 {[%clk 0:03:00.9]} 1... e6 {[%clk 0:02:53.6]} 2. Nf3 {[%clk 0:03:01.1]}
2... d5 {[%clk 0:02:53.6]} 3. e5 {[%clk 0:03:01.7]} 3... c5 {[%clk 0:02:53]} 4.
b4 {[%clk 0:03:02.4]} 4... c4 {[%clk 0:02:50]} 5. d4 {[%clk 0:03:02.2]} 5...
Bxb4+ {[%clk 0:02:47.8]} 6. c3 {[%clk 0:03:02.5]} 6... Bf8 {[%clk 0:02:46.6]} 7.
Ba3 {[%clk 0:03:01.7]} 7... Bxa3 {[%clk 0:02:41.8]} 8. Nxa3 {[%clk 0:03:02.6]}
8... Qa5 {[%clk 0:02:38.8]} 9. Qc1 {[%clk 0:03:02.7]} 9... Ne7 {[%clk
0:02:36.4]} 10. Rb1 {[%clk 0:03:01.9]} 10... O-O {[%clk 0:02:29.3]} 11. Nb5
{[%clk 0:03:00.6]} 11... Nbc6 {[%clk 0:02:20.7]} 12. Nd6 {[%clk 0:02:55.8]}
12... Nf5 {[%clk 0:02:12.6]} 13. Qd2 {[%clk 0:02:48.3]} 13... Nxd6 {[%clk
0:02:08.9]} 14. exd6 {[%clk 0:02:49.2]} 14... Rd8 {[%clk 0:02:07.4]} 15. Be2
{[%clk 0:02:42.1]} 15... Rxd6 {[%clk 0:02:07]} 16. O-O {[%clk 0:02:42.2]} 16...
Rd8 {[%clk 0:02:00.7]} 17. Bd1 {[%clk 0:02:41.9]} 17... Qc7 {[%clk 0:01:58.7]}
18. Bc2 {[%clk 0:02:41.7]} 18... f6 {[%clk 0:01:58.3]} 19. Rfe1 {[%clk
0:02:38.7]} 19... Qf7 {[%clk 0:01:48]} 20. Qf4 {[%clk 0:02:37.7]} 20... Rb8
{[%clk 0:01:29.6]} 21. Bxh7+ {[%clk 0:02:32.1]} 21... Kf8 {[%clk 0:01:20.3]} 22.
Qg3 {[%clk 0:02:09.5]} 22... b5 {[%clk 0:01:17.1]} 23. Bg6 {[%clk 0:02:09.2]}
23... Qg8 {[%clk 0:01:08.7]} 24. Qc7 {[%clk 0:01:50]} 24... Bd7 {[%clk
0:01:01.2]} 25. Qd6+ {[%clk 0:01:50.3]} 25... Ne7 {[%clk 0:01:01.2]} 26. Nh4
{[%clk 0:01:41.1]} 26... Be8 {[%clk 0:00:53.4]} 27. Qa3 {[%clk 0:01:13.7]} 27...
Bf7 {[%clk 0:00:33.6]} 28. Nf5 {[%clk 0:01:03.3]} 28... Rb7 {[%clk 0:00:30.2]}
29. Rxb5 {[%clk 0:00:56.5]} 29... Bxg6 {[%clk 0:00:24.3]} 30. Rxb7 {[%clk
0:00:55]} 1-0